bitfinex/quotes_ETHUSD_20251220
["timestamp","ask_amount","ask_price","bid_price","bid_amount"]
[1766226249408,1.95461946,2983.0,2982.3,0.0133]
[1766226250018,1.8203,2982.9,2982.3,0.0133]
[1766226250920,1.95463164,2982.8,2982.3,0.0133]
[1766226251320,0.13433164,2982.8,2982.3,0.0133]
[1766226268058,0.8138,2983.1,2982.3,0.001]
[1766226268228,0.57533164,2982.9,2982.3,0.001]
[1766226268748,2.73573164,2982.9,2982.3,0.001]
[1766226269166,2.1604,2982.9,2982.3,0.001]
[1766226269367,0.442,2983.1,2982.3,0.001]
[1766226269661,0.57533164,2982.9,2982.3,0.001]
[1766226270260,2.1604,2982.8,2982.3,0.001]
[1766226273458,2.6004,2982.8,2982.3,0.001]
[1766226273662,0.44,2982.8,2982.3,0.001]
[1766226274060,2.1604,2982.6,2982.3,0.001]
[1766226274356,2.42044,2982.6,2982.3,0.001]
[1766226274569,2.1604,2982.6,2982.3,0.001]
[1766226274767,2.29474607,2982.6,2982.3,0.001]
[1766226276378,2.1604,2982.6,2982.3,0.001]
[1766226276584,2.6024,2982.6,2982.3,0.001]
[1766226276881,0.442,2982.6,2982.3,0.001]
[1766226277173,2.0394,2982.9,2982.3,0.001]
[1766226277347,0.002,2982.8,2982.3,0.001]
[1766226278579,0.443,2983.1,2982.3,0.001]
[1766226278783,0.444,2983.1,2982.5,9.60867055]
[1766226279079,0.002,2983.1,2982.5,9.60867055]
[1766226279295,0.002,2983.1,2982.3,9.60967055]
[1766226279445,0.002,2983.1,2982.3,10.61711049]
[1766226279781,0.002,2983.1,2982.3,1.00843994]
[1766226280169,0.002,2983.1,2982.3,0.001]
[1766226280470,0.002,2983.1,2982.4,1.00743994]
[1766226280860,0.002,2983.1,2982.5,0.441]
[1766226284472,0.002,2983.1,2982.5,1.44837905]
[1766226284988,1.00737905,2983.5,2982.6,9.60867055]
[1766226285690,1.00737905,2983.5,2982.6,10.6160496]
[1766226285869,0.002,2983.6,2982.6,10.6160496]
[1766226286071,1.00935199,2983.6,2982.6,9.60867055]
[1766226286380,1.00935199,2983.6,2982.7,1.00735199]
[1766226286796,2.67855199,2983.6,2982.7,1.00735199]
[1766226286971,3.04875199,2983.6,2982.7,1.00735199]
[1766226288662,1.37955199,2983.6,2982.7,1.00735199]
[1766226288863,1.6692,2983.5,2982.7,1.00735199]
[1766226289804,0.38357636,2983.0,2981.1,0.001]
[1766226290008,0.38357636,2983.0,2980.1,0.441]
[1766226290009,1.6692,2981.6,2980.1,0.441]
[1766226290161,1.6692,2981.6,2980.7,9.60374525]
[1766226290162,2.0394,2981.6,2980.7,9.60374525]
[1766226290367,1.6692,2981.6,2980.8,0.442]
[1766226290793,2.0394,2981.5,2981.1,0.001]
[1766226290998,0.3702,2981.4,2981.1,0.001]
[1766226291167,2.0394,2981.4,2981.1,0.001]
[1766226291370,1.6692,2981.3,2981.1,0.001]
[1766226291691,2.0394,2981.3,2981.1,0.001]
[1766226298007,0.3702,2982.0,2981.1,0.001]
[1766226298172,2.0394,2982.0,2981.1,0.001]
[1766226298373,0.442,2981.8,2981.1,0.001]
[1766226298875,2.4814,2981.8,2981.1,0.001]
[1766226299278,0.3702,2981.5,2981.1,0.001]
[1766226299503,2.0394,2981.4,2981.1,0.001]
[1766226299713,2.0394,2981.2,2981.0,0.002]
[1766226300797,1.00793073,2981.6,2981.0,0.002]
[1766226301099,1.6692,2981.5,2981.0,0.002]
[1766226301291,2.0394,2981.5,2981.0,0.002]
[1766226301712,1.6692,2981.5,2981.0,0.002]
[1766226301913,2.0394,2981.5,2981.0,0.002]
[1766226302296,1.00793073,2981.7,2981.0,0.002]
[1766226302828,2.0394,2981.8,2981.0,0.002]
[1766226303809,2.0394,2981.8,2981.1,1.00786978]
[1766226304829,1.7691,2982.0,2981.1,10.61161503]
[1766226305238,1.7691,2982.0,2981.1,1.00786978]
[1766226305438,2.66517216,2982.0,2981.1,1.00786978]
[1766226305596,1.7691,2981.9,2981.1,1.00786978]
[1766226305902,0.001,2981.6,2981.2,0.443]
[1766226306697,3.11886978,2982.1,2981.2,0.443]
[1766226306902,2.111,2982.1,2981.2,0.443]
[1766226307235,2.111,2982.0,2981.2,0.443]
[1766226310033,3.11883253,2982.2,2981.3,10.61155408]
[1766226310239,0.443,2982.7,2981.9,9.60374525]
[1766226310240,1.7691,2982.7,2981.9,9.60374525]
[1766226310421,1.00861589,2982.8,2982.0,0.443]
[1766226310736,0.001,2982.8,2982.4,9.60374525]
[1766226310914,0.001,2982.8,2982.5,0.443]
[1766226311529,2.112,2982.8,2982.5,0.443]
[1766226312813,0.3048752,2983.4,2982.5,0.443]
[1766226313022,1.7701,2983.2,2982.6,1.00740273]
[1766226313231,2.112,2983.2,2982.6,1.00740273]
[1766226313517,0.001,2983.2,2982.6,1.00740273]
[1766226318857,1.7701,2983.2,2982.6,1.00740273]
[1766226319029,2.112,2983.2,2982.6,1.00740273]
[1766226319655,0.3419,2983.1,2982.6,1.00740273]
[1766226319855,2.111,2983.1,2982.7,0.442]
[1766226320235,2.111,2983.1,2982.6,1.00740273]
[1766226320434,1.7691,2983.0,2982.6,1.00740273]
[1766226320736,2.111,2982.9,2982.7,0.442]
[1766226321757,2.111,2982.9,2981.9,1.00743317]
[1766226322064,2.111,2982.9,2982.0,0.442]
[1766226322263,0.3531,2982.6,2981.9,1.00743317]
[1766226322448,2.213,2982.4,2982.1,0.442]
[1766226322961,1.8599,2982.2,2982.1,0.442]
[1766226323370,1.8599,2982.2,2981.9,0.442]
[1766226323551,2.213,2982.2,2981.9,0.442]
[1766226323731,2.213,2982.2,2981.3,0.252]
[1766226323931,2.213,2982.2,2981.7,0.442]
[1766226325365,9.61279251,2982.6,2981.7,0.442]
[1766226325366,2.213,2982.1,2981.7,0.442]
[1766226326169,1.8599,2982.1,2981.7,0.442]
[1766226326474,0.002,2982.2,2981.7,0.442]
[1766226327141,0.002,2982.2,2981.8,0.252]
[1766226328466,0.002,2982.2,2981.7,0.442]
[1766226329043,0.002,2982.2,2981.8,0.252]
[1766226329573,1.8599,2982.5,2981.8,0.25]
[1766226330269,0.3531,2982.6,2981.8,0.25]
[1766226330460,2.213,2982.6,2981.8,0.25]
[1766226334849,2.213,2982.6,2981.8,0.251]
[1766226336074,0.3553,2982.5,2981.8,0.001]
[1766226336280,2.1271,2982.4,2981.8,0.443]
[1766226336474,2.1271,2982.4,2981.8,0.693]
[1766226339576,1.7718,2982.5,2981.8,0.443]
[1766226339761,2.1271,2982.4,2981.8,0.443]
[1766226340168,1.7718,2982.4,2981.8,0.443]
[1766226340371,0.3553,2982.2,2981.8,0.001]
[1766226340572,2.1271,2982.2,2981.8,0.001]
[1766226341087,1.7718,2982.2,2981.8,0.001]
[1766226341389,0.3553,2982.4,2981.8,0.001]
[1766226341558,0.3553,2982.4,2981.8,0.251]
[1766226342594,1.7718,2982.5,2981.8,0.251]
[1766226342895,1.98451,2982.5,2981.8,0.251]
[1766226343060,2.33981,2982.5,2981.8,0.251]
[1766226343461,0.56801,2982.5,2981.8,0.251]
[1766226343757,2.1271,2982.5,2981.8,0.251]
[1766226345190,0.001,2982.8,2981.8,0.251]
[1766226345393,2.1271,2982.6,2981.8,0.251]
[1766226345594,2.1271,2982.5,2981.8,0.251]
[1766226346495,1.7718,2982.5,2981.8,0.251]
[1766226346908,2.1271,2982.5,2981.8,0.251]
[1766226349801,1.7728,2982.8,2981.8,0.251]
[1766226350122,1.7718,2982.4,2981.8,0.001]
[1766226350304,2.1271,2982.4,2981.8,0.251]
[1766226350475,2.1271,2982.7,2981.8,0.251]
[1766226351013,1.7718,2982.5,2981.8,0.251]
[1766226357621,0.3563,2982.6,2981.8,0.251]
[1766226359121,0.001,2982.6,2981.8,0.251]
[1766226371520,0.001,2982.7,2981.8,0.001]
[1766226371720,0.001,2982.7,2981.9,0.249]
[1766226371902,0.001,2982.8,2982.1,0.248]
[1766226372108,0.001,2982.8,2982.3,0.248]
[1766226372721,0.002,2982.9,2982.3,0.247]
[1766226372916,0.002,2982.9,2982.4,0.442]
[1766226373122,1.8836,2982.9,2982.4,0.442]
[1766226373608,1.8816,2983.3,2982.5,0.245]
[1766226373804,1.8826,2983.2,2982.5,0.245]
[1766226374004,0.001,2983.2,2982.5,0.245]
[1766226375423,1.8826,2983.2,2982.5,0.245]
[1766226375617,2.2388,2983.2,2982.5,0.245]
[1766226376229,0.001,2982.9,2982.5,0.245]
[1766226384540,0.001,2982.9,2982.5,0.246]
[1766226389669,2.2014,2983.2,2982.6,0.244]
[1766226392475,0.002,2982.9,2982.6,0.244]
[1766226396082,0.002,2982.9,2982.7,9.60583338]
[1766226396270,0.002,2982.9,2982.8,0.442]
[1766226397555,0.002,2982.9,2982.8,0.686]
[1766226397884,0.002,2982.9,2982.8,0.442]
[1766226401257,1.8985,2982.9,2982.7,0.442]
[1766226403464,2.2721,2982.9,2982.7,0.442]
[1766226404562,2.2721,2982.9,2982.5,0.001]
[1766226404863,2.2721,2982.9,2982.6,0.442]
[1766226405064,1.8985,2982.9,2982.6,0.442]
[1766226405283,0.002,2982.9,2982.6,0.442]
[1766226406502,0.001,2983.2,2982.7,9.84656051]
[1766226407070,1.8975,2983.2,2982.7,9.84656051]
[1766226407272,2.2711,2983.2,2982.7,9.84656051]
[1766226407488,0.002,2982.9,2982.7,9.84656051]
[1766226407689,0.002,2982.9,2982.7,0.242]
[1766226408202,0.002,2982.9,2982.6,0.442]
[1766226409112,0.002,2982.9,2982.5,9.84756051]
[1766226409274,0.002,2982.9,2982.6,0.442]
[1766226409604,0.002,2982.9,2982.5,9.84756051]
[1766226409907,0.002,2982.9,2982.7,0.442]
[1766226410109,0.002,2982.9,2982.5,0.001]
[1766226410275,1.8965,2982.7,2982.5,0.442]
[1766226410474,2.2701,2982.7,2982.5,0.001]
[1766226411083,0.002,2982.9,2982.1,9.60456051]
[1766226411084,0.3736,2982.6,2982.1,9.60456051]
[1766226411404,0.3736,2982.6,2982.2,0.442]
[1766226411405,1.8965,2982.5,2982.2,0.442]
[1766226413219,1.8965,2982.5,2981.8,0.243]
[1766226413424,2.2701,2982.4,2981.8,0.243]
[1766226413585,2.2701,2982.4,2981.9,10.04656051]
[1766226414008,0.3736,2982.3,2981.8,0.001]
[1766226414285,2.2701,2982.2,2981.9,0.442]
[1766226415200,2.2701,2982.1,2981.8,0.443]
[1766226416591,1.8965,2982.1,2981.8,0.443]
[1766226416790,0.3736,2982.3,2981.8,0.443]
[1766226417088,2.2701,2982.3,2981.8,0.443]
[1766226417491,2.2701,2982.3,2981.8,0.685]
[1766226417690,1.8965,2982.3,2981.8,0.443]
[1766226417915,0.3736,2982.5,2981.9,0.242]
[1766226418118,2.2701,2982.5,2981.9,0.242]
[1766226420712,1.8965,2982.3,2981.9,0.242]
[1766226422325,1.8965,2982.3,2981.8,0.443]
[1766226422506,1.8965,2982.3,2981.8,0.685]
[1766226424625,0.002,2982.7,2981.8,0.685]
[1766226424928,2.2804,2982.6,2982.0,0.242]
[1766226427813,0.3461,2982.5,2982.0,0.242]
[1766226428015,2.2804,2982.5,2982.0,0.242]
[1766226428832,1.9343,2982.3,2981.8,0.685]
[1766226430346,1.9343,2982.3,2982.0,0.002]
[1766226430647,2.2804,2982.3,2982.0,0.002]
[1766226430848,2.2804,2982.2,2982.0,0.002]
[1766226432120,1.9343,2982.2,2982.0,0.002]
[1766226435356,0.3461,2982.3,2982.0,0.002]
[1766226439547,0.001,2982.6,2982.0,0.244]
[1766226439548,2.2814,2982.6,2982.0,0.244]
[1766226439852,0.001,2982.6,2982.0,0.244]
[1766226440440,1.9353,2982.6,2982.0,0.244]
[1766226440755,1.9343,2982.4,2982.0,0.244]
[1766226441162,2.3045,2982.4,2982.0,0.002]
[1766226445548,1.9343,2982.4,2982.0,0.002]
[1766226445859,1.7935,2982.6,2982.0,0.244]
[1766226446358,0.3702,2982.5,2982.0,0.244]
[1766226446564,2.1637,2982.5,2982.0,0.244]
[1766226447237,0.3702,2982.3,2982.0,0.002]
[1766226447437,2.1627,2982.2,2982.0,0.002]
[1766226449466,2.1627,2982.2,2979.5,1.64298103]
[1766226449467,0.3702,2981.5,2980.1,0.001]
[1766226449669,1.7925,2981.0,2980.2,0.244]
[1766226449964,1.7925,2981.0,2980.1,0.001]
[1766226449965,1.7925,2980.6,2980.1,0.001]
[1766226450169,0.89600001,2980.5,2980.1,0.443]
[1766226450348,0.89600001,2980.5,2980.1,0.687]
[1766226453378,0.52100001,2980.5,2980.2,0.244]
[1766226453701,1.7925,2980.8,2980.2,0.244]
[1766226454011,0.244,2980.9,2980.2,0.244]
[1766226454196,2.1627,2981.0,2980.2,0.244]
[1766226455502,2.1627,2981.0,2980.1,10.0532725]
[1766226456005,2.1627,2981.0,2980.1,0.443]
[1766226456198,0.3515,2980.9,2980.1,10.0532725]
[1766226456400,2.2368,2980.9,2980.1,10.0532725]
[1766226460010,2.2368,2980.9,2980.1,0.443]
[1766226460212,2.2368,2980.9,2980.1,10.0532725]
[1766226462112,2.89339669,2981.1,2980.1,10.0532725]
[1766226462312,1.00809669,2981.1,2980.1,10.0532725]
[1766226462607,0.001,2981.0,2980.1,10.0532725]
[1766226463905,0.001,2981.0,2980.2,0.442]
[1766226464720,2.2378,2981.0,2980.2,0.442]
[1766226465090,0.3515,2980.9,2980.2,0.442]
[1766226465320,2.2368,2980.9,2980.2,0.442]
[1766226466013,2.2368,2980.9,2980.1,0.001]
[1766226466219,2.2368,2980.9,2980.2,0.442]
[1766226466415,0.442,2980.9,2980.2,0.442]
[1766226466917,2.2378,2981.0,2980.2,0.442]
[1766226470110,1.8863,2981.0,2980.2,0.442]
[1766226470310,2.2368,2980.9,2980.2,0.442]
[1766226471926,2.2368,2980.9,2980.1,9.6112725]
[1766226471927,2.2368,2980.8,2980.3,0.442]
[1766226472597,2.2368,2980.7,2980.3,0.442]
[1766226474601,3.24504238,2980.9,2980.3,0.442]
[1766226475327,2.2368,2980.9,2980.3,0.442]
[1766226475718,2.2378,2980.9,2980.3,0.442]
[1766226475927,0.001,2980.9,2980.3,0.442]
[1766226476702,1.8863,2980.9,2980.3,0.442]
[1766226476898,2.2368,2980.8,2980.3,0.442]
[1766226477100,0.3515,2980.8,2980.3,0.442]
[1766226477403,0.3515,2980.8,2980.1,9.62133992]
[1766226477736,0.3515,2980.8,2980.2,0.442]
[1766226478397,0.3525,2980.9,2980.2,0.442]
[1766226478602,0.001,2980.9,2980.2,0.442]
[1766226479924,0.001,2980.9,2980.1,9.62133992]
[1766226480126,0.001,2980.9,2980.2,0.442]
[1766226482609,0.001,2980.9,2980.3,9.62033992]
[1766226489745,0.001,2981.0,2980.3,9.62033992]
[1766226490141,0.001,2981.0,2980.2,0.442]
[1766226490340,0.3663,2980.9,2980.2,10.06233992]
[1766226490645,1.8818,2980.9,2980.2,10.06233992]
[1766226490823,0.3663,2980.8,2980.2,10.06233992]
[1766226492144,1.8818,2980.9,2980.3,0.002]
[1766226492344,1.8828,2980.9,2980.3,0.002]
[1766226495121,2.2491,2980.9,2980.3,0.002]
[1766226496648,0.001,2980.9,2980.3,0.002]
[1766226499452,0.001,2980.9,2980.4,9.61900298]
[1766226501553,0.001,2980.9,2980.3,9.62100298]
[1766226501729,2.3022,2980.9,2980.3,9.62100298]
[1766226502124,2.3012,2980.8,2980.4,0.442]
[1766226502334,0.3704,2980.7,2980.4,0.442]
[1766226502549,2.3012,2980.7,2980.4,0.442]
[1766226507025,0.3704,2980.6,2980.4,0.442]
[1766226507226,2.3012,2980.6,2980.4,0.442]
[1766226507752,2.3012,2980.6,2980.3,0.002]
[1766226507933,2.3012,2980.6,2980.4,0.442]
[1766226510253,0.001,2980.9,2980.4,0.442]
[1766226510443,2.3022,2980.9,2980.4,0.442]
[1766226510635,0.001,2980.9,2980.4,0.442]
[1766226511153,2.3022,2980.9,2980.4,0.442]
[1766226513054,1.9318,2980.9,2980.4,0.442]
[1766226513226,2.3012,2980.8,2980.4,0.442]
[1766226513725,2.3012,2980.7,2980.5,0.442]
[1766226514054,2.16102,2980.7,2980.3,0.002]
[1766226514250,1.9308,2980.7,2980.3,0.002]
[1766226514625,1.9308,2980.7,2980.4,0.002]
[1766226516153,2.1281,2980.6,2980.4,0.002]
[1766226517931,2.1281,2980.6,2980.3,0.002]
[1766226518250,2.1281,2980.5,2980.3,0.002]
[1766226519655,0.001,2980.9,2980.3,0.002]
[1766226519656,2.1291,2980.9,2980.3,0.002]
[1766226520659,0.3419,2980.8,2980.3,0.002]
[1766226520837,2.1281,2980.8,2980.3,0.002]
[1766226521647,0.3419,2980.8,2980.3,0.002]
[1766226522371,2.1281,2980.8,2980.3,0.002]
[1766226530669,2.1291,2980.8,2980.3,0.002]
[1766226533976,0.001,2980.8,2980.3,0.002]
[1766226538775,0.001,2980.9,2980.4,9.6205547]
[1766226541973,0.001,2981.0,2980.5,0.442]
[1766226543578,0.001,2981.0,2980.6,9.6205547]
[1766226544692,0.001,2981.0,2980.5,10.06028683]
[1766226546356,0.001,2981.0,2980.5,9.61828683]
[1766226546558,0.001,2981.0,2980.7,9.61828683]
[1766226547059,2.7126,2981.5,2980.9,9.61828683]
[1766226547262,2.2706,2981.4,2980.9,9.61828683]
[1766226547583,0.3648,2981.8,2980.9,9.61828683]
[1766226547788,2.2706,2981.7,2980.9,9.61828683]
[1766226548260,1.9058,2981.7,2980.9,9.61828683]
[1766226548460,1.9058,2981.5,2980.9,9.61828683]
[1766226548680,2.2706,2981.5,2980.9,9.61828683]
[1766226549387,2.2706,2981.5,2980.9,10.06028683]
[1766226552167,2.2706,2981.5,2981.1,9.61828683]
[1766226553197,2.2716,2981.5,2981.1,9.61828683]
[1766226553414,0.001,2981.5,2981.3,9.61828683]
[1766226553576,1.626,2982.0,2981.3,9.61828683]
[1766226553577,3.8966,2982.0,2981.3,9.61828683]
[1766226553966,2.2706,2981.9,2981.5,9.61828683]
[1766226554800,1.626,2982.0,2981.5,9.61828683]
[1766226557390,2.2706,2981.9,2981.4,0.442]
[1766226557719,2.2706,2981.8,2981.4,0.442]
[1766226558286,0.3648,2981.7,2980.6,1.00777836]
[1766226558487,2.2706,2981.6,2981.1,9.61828683]
[1766226558713,2.2706,2981.6,2981.1,10.05928683]
[1766226559723,1.9058,2981.6,2981.1,10.05928683]
[1766226561422,1.9058,2981.6,2981.1,0.441]
[1766226561909,2.2725,2981.6,2981.1,0.441]
[1766226564321,2.2725,2981.6,2981.1,0.6712]
[1766226566227,2.2725,2981.6,2981.1,0.2302]
[1766226566405,2.2725,2981.6,2981.1,0.6712]
[1766226568006,2.2735,2981.6,2981.1,0.6712]
[1766226586535,1.9068,2981.6,2981.1,0.441]
[1766226586737,2.15,2981.5,2981.1,0.441]
[1766226588140,2.15,2981.5,2981.0,0.2322]
[1766226588342,0.3399,2981.4,2981.0,0.443]
[1766226588550,2.15,2981.4,2981.0,0.443]
[1766226589406,1.8101,2981.4,2981.0,0.443]
[1766226589613,1.8101,2981.5,2981.0,0.6732]
[1766226590835,0.3409,2981.6,2981.1,0.2302]
[1766226591035,0.001,2981.6,2981.1,0.2302]
[1766226593251,1.626,2982.0,2981.1,0.2292]
[1766226593546,2.15,2981.9,2981.1,0.2292]
[1766226593745,1.96981,2982.0,2981.1,0.2292]
[1766226593949,1.626,2982.0,2981.1,0.2292]
[1766226594146,3.4361,2982.0,2981.1,0.2292]
[1766226594335,3.776,2982.0,2981.1,0.2292]
[1766226594511,0.001,2981.6,2981.1,0.2292]
[1766226595429,3.776,2982.0,2981.4,0.2292]
[1766226595649,4.1979,2982.0,2981.4,0.2292]
[1766226595958,3.776,2982.0,2981.4,0.2292]
[1766226596636,2.15,2981.9,2981.4,0.2292]
[1766226598843,1.626,2982.0,2981.4,0.2292]
[1766226599860,3.776,2982.0,2981.4,0.2292]
[1766226600357,1.8101,2981.9,2981.4,0.2292]
[1766226600838,2.15,2981.9,2981.4,0.2292]
[1766226601025,2.15,2981.8,2981.2,0.2292]
[1766226601226,0.3399,2981.7,2981.2,0.6702]
[1766226601427,2.15,2981.7,2981.2,0.6702]
[1766226601627,2.15,2981.9,2981.3,0.2292]
[1766226601858,1.626,2982.0,2981.5,0.2292]
[1766226602058,0.001,2982.1,2981.8,0.2292]
[1766226602557,0.001,2982.2,2981.8,0.2292]
[1766226602942,0.001,2981.9,2981.8,0.2292]
[1766226603255,0.001,2982.2,2981.8,0.2292]
[1766226604228,0.001,2982.2,2981.7,9.614569]
[1766226604560,0.001,2982.2,2981.8,0.2282]
[1766226607954,1.7491,2982.9,2982.4,9.614569]
[1766226608156,2.1112,2982.9,2982.4,9.614569]
[1766226608360,0.3641,2982.9,2982.3,0.2272]
[1766226608545,2.1102,2982.8,2982.3,0.2272]
[1766226608748,2.1102,2982.8,2981.5,0.2272]
[1766226608749,2.1112,2982.7,2981.5,0.2272]
[1766226608948,2.1112,2982.7,2981.8,9.614569]
[1766226609151,1.7471,2982.5,2981.8,9.614569]
[1766226609354,2.1092,2982.4,2981.8,9.841769]
[1766226609538,2.1092,2982.4,2981.9,0.2272]
[1766226609734,2.1092,2982.4,2982.0,0.441]
[1766226610662,0.001,2982.2,2982.0,0.441]
[1766226610858,0.001,2982.2,2981.9,0.6682]
[1766226611053,2.1092,2982.4,2981.9,0.6682]
[1766226613038,0.3641,2982.7,2982.0,0.2272]
[1766226613374,0.3621,2982.6,2982.0,0.2272]
[1766226613536,0.3621,2982.6,2981.9,0.441]
[1766226613537,2.1092,2982.4,2981.9,0.441]
[1766226614939,2.1092,2982.4,2981.9,0.6682]
[1766226616679,1.7471,2982.4,2981.9,0.6682]
[1766226616840,0.002,2982.7,2982.1,0.2272]
[1766226617046,0.002,2982.7,2982.4,0.2272]
[1766226617654,2.1112,2982.7,2982.0,9.841769]
[1766226617855,2.1092,2982.6,2982.0,9.841769]
[1766226618054,2.1102,2982.6,2982.1,0.441]
[1766226618789,2.1102,2982.6,2982.1,0.6682]
[1766226620288,1.7481,2982.6,2982.1,0.6682]
[1766226620452,0.001,2982.6,2982.1,0.6682]
[1766226620658,0.001,2982.6,2982.2,0.2272]
[1766226621490,0.001,2982.6,2982.2,9.83453996]
[1766226621672,0.002,2982.7,2982.4,9.83453996]
[1766226621859,0.001,2982.8,2982.5,0.2252]
[1766226622261,0.001,2982.8,2982.4,9.60733996]
[1766226622790,1.9288,2982.8,2982.4,9.60733996]
[1766226623285,0.001,2982.8,2982.5,0.2252]
[1766226623859,0.001,2982.8,2982.4,9.60733996]
[1766226624670,0.001,2982.8,2982.3,0.2252]
[1766226624874,2.2828,2982.8,2982.3,9.83253996]
[1766226629479,0.001,2982.8,2982.4,0.2252]
[1766226632079,1.9288,2982.8,2982.3,9.60733996]
[1766226632285,2.2818,2982.7,2982.3,9.60733996]
[1766226638284,1.9278,2982.7,2982.3,9.60733996]
[1766226638484,1.9278,2982.7,2982.3,9.87003996]
[1766226638720,0.001,2982.8,2982.4,0.2627]
[1766226639416,0.001,2982.8,2982.5,9.60733996]
[1766226639626,0.001,2982.8,2982.5,9.87363996]
[1766226640415,0.443,2982.9,2982.6,0.2663]
[1766226642000,2.1793,2983.1,2982.7,9.60733996]
[1766226642400,3.18677039,2983.1,2982.6,0.2663]
[1766226642825,2.1793,2983.1,2982.6,0.2663]
[1766226643026,0.001,2982.8,2982.6,0.2663]
[1766226644323,0.001,2982.8,2982.3,0.002]
[1766226644511,2.1793,2982.8,2982.3,10.05033996]
[1766226645296,2.1793,2982.8,2982.3,10.33323996]
[1766226646928,2.1793,2982.8,2982.3,9.89223996]
[1766226650338,1.835,2982.8,2982.3,9.60933996]
[1766226650537,2.1793,2983.1,2982.5,9.90903996]
[1766226650712,2.1793,2983.1,2982.6,0.3017]
[1766226650912,2.1793,2983.1,2982.4,0.3017]
[1766226651222,1.834,2982.9,2982.4,0.3017]
[1766226651638,2.1783,2982.9,2982.4,0.3017]
[1766226651843,0.001,2982.8,2982.4,0.3017]
[1766226655532,0.001,2983.1,2982.6,0.3142]
[1766226656936,2.1783,2983.0,2982.5,9.6051772]
[1766226657137,1.834,2982.8,2982.3,9.6071772]
[1766226657341,2.1783,2982.7,2982.3,10.0481772]
[1766226657849,2.1783,2982.7,2982.3,0.002]
[1766226660028,0.001,2982.8,2982.1,0.002]
[1766226660029,1.834,2982.5,2982.1,0.002]
[1766226660232,0.001,2982.8,2982.1,0.002]
[1766226660233,2.1783,2982.4,2982.1,0.002]
[1766226660439,2.1783,2982.4,2981.8,0.002]
[1766226660440,1.834,2982.4,2981.8,0.002]
[1766226660638,2.1783,2982.3,2981.8,0.002]
[1766226662366,2.1783,2982.2,2981.8,0.002]
[1766226663157,1.834,2982.2,2981.8,0.3395]
[1766226663333,1.834,2982.2,2981.8,0.002]
[1766226677981,2.2346,2982.2,2981.8,0.002]
[1766226678184,0.4006,2982.1,2981.8,0.002]
[1766226678387,2.2314,2982.1,2981.8,0.002]
[1766226678759,1.8308,2982.1,2981.8,0.002]
[1766226680284,2.2314,2982.3,2981.8,0.002]
[1766226680673,2.2314,2982.3,2981.8,0.3667]
[1766226681280,0.001,2982.2,2981.8,0.3667]
[1766226683289,1.854,2982.2,2981.8,0.3667]
[1766226683994,1.854,2982.2,2981.8,0.002]
[1766226684188,0.4029,2982.1,2981.8,0.002]
[1766226684366,1.854,2982.2,2981.8,0.002]
[1766226684567,1.853,2982.7,2981.9,0.3681]
[1766226684786,0.26979,2982.6,2981.9,0.3681]
[1766226684994,0.441,2982.5,2981.9,0.3681]
[1766226685878,2.12279,2982.6,2981.9,0.3681]
[1766226687364,2.2559,2982.5,2981.9,0.3681]
[1766226687768,1.853,2982.5,2981.9,0.3681]
[1766226687969,2.105569,2982.5,2981.9,0.3681]
[1766226689702,2.106569,2982.5,2981.9,0.3681]
[1766226690203,0.001,2982.8,2982.0,0.3723]
[1766226690372,2.2569,2982.8,2982.0,0.3723]
[1766226690572,0.8449,2982.8,2982.0,0.3723]
[1766226690792,1.853,2982.7,2982.0,0.3731]
[1766226696477,1.853,2982.7,2981.4,3.35412597]
[1766226696478,0.4238,2981.2,2980.3,0.002]
[1766226696701,1.8122,2980.9,2980.3,0.002]
[1766226696979,2.236,2980.7,2980.3,0.002]
[1766226697179,1.8122,2980.7,2980.3,0.002]
[1766226697411,0.3824,2980.8,2980.3,0.3824]
[1766226697599,2.236,2980.9,2980.3,0.3824]
[1766226697796,0.444,2980.8,2980.3,0.3824]
[1766226698107,0.444,2980.8,2980.6,0.002]
[1766226711623,2.236,2981.1,2980.6,0.002]
[1766226712503,0.3926,2981.0,2980.6,0.3926]
[1766226713000,0.3926,2981.0,2980.7,0.3912]
[1766226713311,2.236,2981.2,2980.7,0.3912]
[1766226713645,3.2440662,2981.2,2980.7,0.3912]
[1766226714422,0.001,2980.8,2980.7,0.3912]
[1766226716334,0.001,2980.8,2980.6,0.002]
[1766226718609,0.001,2980.8,2980.7,0.442]
[1766226721439,0.001,2980.8,2980.6,0.002]
[1766226721739,2.237,2980.8,2980.6,0.444]
[1766226722837,1.8132,2980.8,2980.6,0.444]
[1766226723738,0.001,2980.8,2980.6,0.444]
[1766226724712,0.001,2980.8,2980.6,0.002]
[1766226726844,0.13441515,2981.0,2980.6,0.002]